bitfinex-derivatives/quotes_ETHF0:USTF0_20250410
["timestamp","ask_amount","ask_price","bid_price","bid_amount"]
[1744325311964,3.03961,1528.4,1528.3,4.67180841]
[1744325313261,1.31910841,1528.5,1528.4,1.30931]
[1744325313567,1.31910841,1528.5,1528.4,1.6353]
[1744325314169,1.31910841,1528.5,1528.4,2.94461]
[1744325314471,0.00980841,1528.5,1528.4,2.94461]
[1744325314861,1.31903841,1528.5,1528.4,2.94461]
[1744325315670,1.31903841,1528.5,1528.4,1.6353]
[1744325315869,1.30931,1528.4,1528.3,0.89510841]
[1744325316169,2.95511,1528.4,1528.3,0.89510841]
[1744325316466,4.62111,1528.4,1528.3,0.89510841]
[1744325316967,9.62111,1528.4,1528.3,8.41e-06]
[1744325318871,15.47311,1528.4,1528.3,8.41e-06]
[1744325321263,10.47311,1528.4,1528.3,8.41e-06]
[1744325324874,4.62111,1528.4,1528.3,8.41e-06]
[1744325325773,3.78961,1528.4,1528.3,8.41e-06]
[1744325325975,0.00980841,1528.5,1528.4,1.30931]
[1744325326176,1.31903841,1528.5,1528.4,3.87191]
[1744325326670,1.31903841,1528.5,1528.4,8.35791]
[1744325326976,0.00980841,1528.5,1528.4,13.35791]
[1744325330972,5.15067025,1528.5,1528.4,13.35791]
[1744325332877,5.15067025,1528.5,1528.4,8.35791]
[1744325333078,6.45990025,1528.5,1528.4,8.35791]
[1744325333378,5.15067025,1528.5,1528.4,8.35791]
[1744325334476,0.00980841,1528.5,1528.4,8.35791]
[1744325334678,0.00980841,1528.5,1528.4,11.56571]
[1744325341481,1.31903841,1528.5,1528.4,10.2564]
[1744325341788,1.31903841,1528.5,1528.4,7.0486]
[1744325342473,1.31903841,1528.5,1528.4,2.5626]
[1744325342876,1.30931,1528.4,1528.3,8.41e-06]
[1744325343077,3.00421,1528.4,1528.3,8.41e-06]
[1744325343275,3.00421,1528.4,1528.3,1.60540841]
[1744325343786,3.00421,1528.4,1528.3,2.91480841]
[1744325344185,3.00421,1528.4,1528.3,1.60540841]
[1744325345585,3.00421,1528.4,1528.3,2.91480841]
[1744325345882,1.30931,1528.4,1528.3,1.60540841]
[1744325346087,8.00811,1528.4,1528.3,8.41e-06]
[1744325346285,8.87351,1528.4,1528.3,8.41e-06]
[1744325346783,3.87351,1528.4,1528.3,8.41e-06]
[1744325348988,8.87351,1528.4,1528.3,8.41e-06]
[1744325349179,3.87351,1528.4,1528.3,8.41e-06]
[1744325349985,9.01437184,1528.4,1528.3,8.41e-06]
[1744325353682,8.14897184,1528.4,1528.3,8.41e-06]
[1744325353985,8.14897184,1528.4,1528.3,1.62630841]
[1744325354894,8.14897184,1528.4,1528.3,8.41e-06]
[1744325355282,8.96317184,1528.4,1528.3,8.41e-06]
[1744325355588,8.14897184,1528.4,1528.3,8.41e-06]
[1744325355887,8.14897184,1528.4,1528.3,1.69750841]
[1744325357782,8.14897184,1528.4,1528.3,3.00690841]
[1744325357986,6.45017184,1528.4,1528.3,8.41e-06]
[1744325358190,2.92771,1528.4,1528.3,8.41e-06]
[1744325360089,2.92771,1528.4,1528.3,1.73590841]
[1744325360290,2.92771,1528.4,1528.3,3.04530841]
[1744325360788,2.92771,1528.4,1528.3,1.73590841]
[1744325361091,2.92771,1528.4,1528.3,8.41e-06]
[1744325361291,3.78821,1528.4,1528.3,8.41e-06]
[1744325363988,8.78821,1528.4,1528.3,8.41e-06]
[1744325365889,3.78821,1528.4,1528.3,8.41e-06]
[1744325368190,8.78821,1528.4,1528.3,8.41e-06]
[1744325368397,16.46858827,1528.4,1528.3,8.41e-06]
[1744325371993,1.30974,1527.9,1527.8,1.686]
[1744325372294,1.30991,1527.7,1527.6,16.13481838]
[1744325373593,1.30991,1527.7,1527.6,16.96951838]
[1744325374799,1.30991,1527.7,1527.6,1.6451]
[1744325375398,1.30991,1527.7,1527.6,3.2184]
[1744325375695,1.30991,1527.7,1527.6,4.5284]
[1744325375896,1.30991,1527.7,1527.6,3.2184]
[1744325377801,1.31,1527.6,1527.5,6.65250841]
[1744325377991,1.31,1527.6,1527.5,4.91500841]
[1744325378193,1.31,1527.6,1527.5,9.91500841]
[1744325378702,1.31,1527.6,1527.5,11.22508841]
[1744325378903,1.31,1527.6,1527.5,4.91500841]
[1744325379093,2.9647,1527.6,1527.5,1.70720841]
[1744325381002,1.31,1527.6,1527.5,1.70720841]
[1744325381698,1.31,1527.6,1527.5,3.01728841]
[1744325381901,1.31,1527.6,1527.5,1.70720841]
[1744325382792,2.1715,1527.6,1527.5,1.70720841]
[1744325383104,2.8935,1527.6,1527.5,1.70720841]
[1744325387611,1.31,1527.6,1527.5,1.70720841]
[1744325393707,1.31,1527.6,1527.5,3.01728841]
[1744325396415,1.39899194,1527.6,1527.5,3.01728841]
[1744325396615,1.39899194,1527.6,1527.5,4.68928841]
[1744325399427,0.08899194,1527.6,1527.5,4.68928841]
[1744325399926,1.39899194,1527.6,1527.5,4.68928841]
[1744325401626,0.08899194,1527.6,1527.5,4.68928841]
[1744325401824,0.08899194,1527.6,1527.5,9.68928841]
[1744325402134,0.00980841,1527.7,1527.6,1.31]
[1744325402325,0.00980841,1527.7,1527.6,10.7088]
[1744325402627,0.00980841,1527.7,1527.6,15.7088]
[1744325405333,0.09880035,1527.7,1527.6,15.7088]
[1744325406933,0.09880035,1527.7,1527.6,21.7008]
[1744325410631,5.94883413,1528.3,1528.2,1.30948]
[1744325410835,8.91213413,1528.3,1528.2,8.99828]
[1744325411037,8.91213413,1528.3,1528.2,7.6888]
[1744325411228,1.30948,1528.2,1528.1,1.30951]
[1744325411428,2.96345,1528.2,1528.0,2.94127]
[1744325411633,2.96345,1528.2,1528.1,1.30957]
[1744325411834,1.30957,1528.1,1528.0,7.7806]
[1744325412134,1.6539,1528.1,1528.0,7.7806]
[1744325412536,1.30951,1528.2,1528.1,1.30952]
[1744325412734,1.30957,1528.1,1528.0,7.7806]
[1744325413634,2.9331,1528.2,1528.1,1.30957]
[1744325413832,2.93317,1528.2,1528.0,7.7806]
[1744325414034,1.6236,1528.1,1528.0,7.7806]
[1744325416339,1.71259229,1528.1,1528.0,7.7806]
[1744325421241,3.02216229,1528.1,1528.0,3.2078]
[1744325421541,3.02216229,1528.1,1527.9,4.481]
[1744325421542,1.30965,1528.0,1527.9,4.481]
[1744325421742,3.78755,1528.0,1527.9,5.79074]
[1744325422341,3.87654229,1528.0,1527.9,5.79074]
[1744325422537,1.3098,1527.9,1527.8,1.30981]
[1744325422732,1.6519,1527.9,1527.8,1.30981]
[1744325423535,1.74089229,1527.9,1527.8,1.30981]
[1744325424045,1.74089229,1527.9,1527.8,2.95561]
[1744325425044,1.82988423,1527.9,1527.8,2.95561]
[1744325429047,1.82988423,1527.9,1527.8,1.30981]
[1744325432642,0.00980841,1528.3,1528.2,1.30948]
[1744325432947,1.74350841,1528.3,1528.2,8.99428]
[1744325433146,6.87294254,1528.3,1528.2,8.99428]
[1744325433348,6.96193448,1528.3,1528.2,8.99428]
[1744325434946,6.96193448,1528.3,1528.2,10.64828]
[1744325436146,5.22823448,1528.3,1528.2,10.64828]
[1744325437251,0.09880035,1528.3,1528.2,10.64828]
[1744325437549,0.09880035,1528.3,1528.2,21.64028]
[1744325437747,0.09880035,1528.3,1528.2,16.64028]
[1744325440043,5.12943413,1528.7,1528.6,1.30914]
[1744325440349,6.84113413,1528.7,1528.6,1.30914]
[1744325440751,6.84113413,1528.7,1528.6,2.15534]
[1744325441149,5.12943413,1528.7,1528.6,4.68644]
[1744325441550,5.21842642,1528.7,1528.6,4.68644]
[1744325442354,1.80069229,1528.7,1528.6,4.68644]
[1744325444957,1.30914,1528.6,1528.5,4.48680841]
[1744325445254,2.10844,1528.6,1528.5,5.79603841]
[1744325445450,3.67794,1528.6,1528.5,5.79603841]
[1744325445653,3.76693229,1528.6,1528.5,5.79603841]
[1744325445852,2.45779229,1528.6,1528.5,5.79603841]
[1744325446159,2.45779229,1528.6,1528.5,9.00383841]
[1744325447056,3.76693229,1528.6,1528.5,1.31903841]
[1744325447250,8.76693229,1528.6,1528.5,0.00980841]
[1744325447754,8.76693229,1528.6,1528.3,10.24601238]
[1744325447755,1.30931,1528.4,1528.3,10.24601238]
[1744325447957,1.30931,1528.4,1528.3,8.32201238]
[1744325448160,1.30948,1528.2,1528.1,20.25200722]
[1744325448350,4.51728,1528.2,1528.1,20.25200722]
[1744325448663,9.60627229,1528.2,1528.1,20.25200722]
[1744325449353,6.39847229,1528.2,1528.1,20.25200722]
[1744325449557,1.39847229,1528.2,1528.1,20.25200722]
[1744325449959,1.47648934,1528.2,1528.1,20.25200722]
[1744325450556,1.30957,1528.1,1528.0,1.63780841]
[1744325451151,1.47657934,1528.1,1528.0,1.63780841]
[1744325451962,6.47657934,1528.1,1528.0,0.00980841]
[1744325452462,9.68437934,1528.1,1528.0,0.00980841]
[1744325452955,10.65447934,1528.1,1528.0,0.00980841]
[1744325454058,10.65447934,1528.1,1528.0,8.41e-06]
[1744325457458,19.33106362,1528.1,1528.0,8.41e-06]
[1744325457762,14.33106362,1528.1,1528.0,8.41e-06]
[1744325460365,13.36096362,1528.1,1528.0,1.30965841]
[1744325460565,12.05139362,1528.1,1528.0,1.30965841]
[1744325460859,8.84359362,1528.1,1528.0,1.30965841]
[1744325461057,8.84359362,1528.1,1528.0,6.30965841]
[1744325461261,7.53889362,1528.1,1528.0,7.91835841]
[1744325461759,5.12298144,1528.2,1528.1,1.30957]
[1744325462060,5.12298144,1528.2,1528.1,11.40677]
[1744325462362,5.12298144,1528.2,1528.1,16.40677]
[1744325464365,5.12298144,1528.2,1528.1,11.40677]
[1744325464662,3.81838144,1528.2,1528.1,17.25727]
[1744325465656,0.58552144,1528.2,1528.1,17.25727]
[1744325465852,1.44e-06,1528.2,1528.1,17.25727]
[1744325466963,1.31879841,1528.8,1528.7,1.30906]
[1744325467158,1.30907,1528.7,1528.6,1.30912]
[1744325468564,1.30914,1528.6,1528.5,5.3407]
[1744325470065,1.30914,1528.6,1528.5,6.64993]
[1744325470657,1.30913,1528.7,1528.6,1.30913]
[1744325470963,1.30914,1528.6,1528.5,6.6499]
[1744325472866,1.30914,1528.6,1528.5,5.3407]
[1744325473072,1.30914,1528.6,1528.5,0.8657]
[1744325473369,1.3094,1528.3,1528.2,4.0497]
[1744325473571,1.30937,1528.4,1528.3,1.30939]
[1744325473879,1.3094,1528.3,1528.2,2.98314]
[1744325474260,1.30937,1528.4,1528.2,2.98314]
[1744325474461,1.30937,1528.4,1528.3,1.3094]
[1744325474766,1.30931,1528.4,1528.3,1.3094]
[1744325475368,1.30928,1528.5,1528.4,1.30931]
[1744325476070,1.30936,1528.4,1528.3,1.30936]
[1744325476272,1.3093,1528.5,1528.4,1.30929]
[1744325477065,1.30919,1528.6,1528.5,1.30919]
[1744325477566,1.30928,1528.5,1528.4,1.30928]
[1744325478161,12.73876,1528.7,1528.2,4.8815]
[1744325478366,1.30933,1528.4,1528.3,1.30931]
[1744325478663,1.3093,1528.5,1528.4,1.3093]
[1744325478869,1.30919,1528.6,1528.5,1.30919]
[1744325479473,1.30924,1528.5,1528.4,1.30923]
[1744325480570,1.30912,1528.7,1528.6,1.30912]
[1744325482469,1.30914,1528.6,1528.5,3.01125]
[1744325482670,1.30911,1528.7,1528.6,1.30911]
[1744325484677,0.00980841,1528.8,1528.7,1.30906]
[1744325485368,1.31877841,1528.8,1528.7,1.30906]
[1744325486275,0.00980841,1528.8,1528.5,4.975]
[1744325486578,0.00980841,1528.8,1528.7,1.30906]
[1744325486977,0.00980841,1528.8,1528.7,2.99696]
[1744325490679,0.00980841,1528.8,1528.7,7.47096]
[1744325491280,3.2078,1529.3,1529.2,1.30863]
[1744325491575,5.37351,1529.3,1529.2,1.30863]
[1744325491879,1.30866,1529.2,1529.1,1.30868]
[1744325492075,1.30866,1529.2,1529.1,4.59348]
[1744325492276,1.30866,1529.2,1529.1,2.97118]
[1744325494270,1.30866,1529.2,1529.1,1.6625]
[1744325494474,1.30871,1529.1,1529.0,0.00980841]
[1744325494681,1.30871,1529.1,1529.0,1.71630841]
[1744325497682,1.30871,1529.1,1529.0,3.02510841]
[1744325498995,1.30871,1529.2,1529.1,1.30869]
[1744325499194,1.30871,1529.2,1529.1,2.11639]
[1744325499395,1.30871,1529.2,1529.1,0.8077]
[1744325499694,1.30871,1529.2,1529.1,2.5027]
[1744325500495,1.30871,1529.2,1529.1,3.81141]
[1744325501698,0.86690841,1529.3,1529.2,1.30863]
[1744325501699,2.17551841,1529.3,1529.2,1.30863]
[1744325501996,1.31841841,1529.3,1529.2,2.91583]
[1744325502192,1.31841841,1529.3,1529.2,3.74733]
[1744325504101,0.00980841,1529.3,1529.2,3.74733]
[1744325504498,0.00980841,1529.3,1529.2,6.95513]
[1744325505000,0.00980841,1529.3,1529.2,11.95513]
[1744325505397,1.30829,1529.6,1529.5,1.30831]
[1744325505599,1.30824,1529.7,1529.6,1.30826]
[1744325506493,10.22561693,1529.8,1529.7,1.3082]
[1744325506801,10.22561693,1529.8,1529.7,2.1568]
[1744325507198,11.53372693,1529.8,1529.7,0.8486]
[1744325507903,1.3082,1529.7,1529.6,1.6272]
[1744325511802,1.30837,1529.5,1529.4,7.6778]
[1744325512206,1.30837,1529.5,1529.4,8.98626]
[1744325512403,1.30837,1529.5,1529.4,4.47]
[1744325512708,1.30846,1529.4,1529.3,0.8173]
[1744325513101,1.30846,1529.4,1529.3,2.5322]
[1744325513301,1.30846,1529.4,1529.3,1.7149]
[1744325513502,2.27656,1529.4,1529.3,1.7149]
[1744325514899,5.48436,1529.4,1529.3,1.7149]
[1744325516007,1.30863,1529.2,1529.1,1.6115]
[1744325517409,1.30863,1529.2,1529.1,3.2198]
[1744325517909,1.30863,1529.2,1529.1,2.4256]
[1744325518113,2.14013,1529.2,1529.1,2.4256]
[1744325521405,1.30863,1529.2,1529.1,2.4256]
[1744325524419,1.30863,1529.2,1529.1,3.73431]
[1744325525916,1.30859,1529.3,1529.2,1.30857]
[1744325526114,1.30854,1529.3,1529.2,1.6246]
[1744325526314,2.27704,1529.3,1529.2,1.6246]
[1744325527315,1.30854,1529.3,1529.2,1.6246]
[1744325528817,1.30871,1529.1,1529.0,0.85950841]
[1744325529122,1.30914,1528.6,1528.5,1.30919]
[1744325529323,1.30923,1528.5,1528.4,14.97708]
[1744325529514,2.5613,1529.0,1528.5,1.30923]
[1744325529515,1.30921,1528.6,1528.5,1.30923]
[1744325529713,1.30913,1528.7,1528.5,1.30923]
[1744325529920,8.70852,1528.9,1528.6,1.30914]
[1744325530126,8.71832841,1528.9,1528.6,0.00980841]
[1744325530321,1.30912,1528.7,1528.6,0.00980841]
[1744325531322,2.10682,1528.7,1528.6,0.00980841]
[1744325532325,2.10682,1528.7,1528.6,1.70440841]
[1744325532926,1.30912,1528.7,1528.6,1.70440841]
[1744325533930,1.30912,1528.7,1528.6,3.01354841]
[1744325534226,1.30903,1528.8,1528.6,6.22134841]
[1744325534424,0.00980841,1528.9,1528.8,1.30897]
[1744325534628,1.31872841,1528.9,1528.8,1.30897]
[1744325534824,1.31872841,1528.9,1528.8,0.831]
[1744325535625,1.31872841,1528.9,1528.8,2.5209]
[1744325536426,4.52652841,1528.9,1528.8,2.5209]
[1744325536628,1.31872841,1528.9,1528.8,2.5209]
[1744325536829,2.90182841,1528.9,1528.8,2.5209]
[1744325537823,1.31872841,1528.9,1528.8,2.5209]
[1744325538123,1.31872841,1528.9,1528.8,1.6899]
[1744325538319,1.30906,1528.7,1528.6,4.04180841]
[1744325538535,1.30906,1528.7,1528.6,1.58870841]
[1744325539029,2.87566,1528.7,1528.6,1.58870841]
[1744325540223,1.30906,1528.7,1528.6,1.58870841]
[1744325542031,1.30906,1528.7,1528.6,2.89784841]
[1744325542330,1.30906,1528.7,1528.6,1.58870841]
[1744325544032,7.97376,1528.7,1528.6,0.00980841]
[1744325544327,1.30965,1528.0,1527.9,18.46495251]
[1744325544532,1.30965,1528.0,1527.9,15.25715251]
[1744325544730,6.30965,1528.0,1527.9,13.80364251]
[1744325545232,7.97435,1528.0,1527.9,13.80364251]
[1744325545830,2.97435,1528.0,1527.9,13.80364251]
[1744325546322,2.97435,1528.0,1527.9,15.47964251]
[1744325547536,2.97435,1528.0,1527.9,1.676]
[1744325548338,1.30965,1528.0,1527.9,1.676]
[1744325549830,1.30974,1527.9,1527.8,0.00980841]
[1744325550032,8.98754,1527.9,1527.8,0.00980841]
[1744325550227,10.63744,1527.9,1527.8,0.00980841]
[1744325552647,4.51754,1527.9,1527.8,0.00980841]
[1744325553139,6.08464,1527.9,1527.8,8.41e-06]
[1744325553443,11.08464,1527.9,1527.8,8.41e-06]
[1744325554145,6.08464,1527.9,1527.8,8.41e-06]
[1744325555859,11.08464,1527.9,1527.8,8.41e-06]
[1744325557964,6.08464,1527.9,1527.8,8.41e-06]
[1744325558959,11.08464,1527.9,1527.8,8.41e-06]
[1744325559159,6.54921,1527.8,1526.9,3.2078]
[1744325559359,1.31051,1527.0,1526.9,4.8716]
[1744325561552,1.3106,1526.9,1526.8,0.00980841]
[1744325562461,1.3106,1526.9,1526.8,1.58550841]
[1744325563365,1.3106,1526.9,1526.8,0.00980841]
[1744325563854,2.9182,1526.9,1526.8,0.00980841]
[1744325564954,7.9182,1526.9,1526.8,8.41e-06]
[1744325565254,9.5549,1526.9,1526.8,8.41e-06]
[1744325566657,4.5549,1526.9,1526.8,8.41e-06]
[1744325567465,1.31077,1526.7,1526.6,8.41e-06]
[1744325567765,1.31077,1526.7,1526.5,0.8243]
[1744325567766,1.31086,1526.6,1526.5,0.8243]
[1744325567972,2.98156,1526.6,1526.5,0.8243]
[1744325568660,1.31103,1526.4,1526.3,0.8593]
[1744325568859,4.51883,1526.4,1526.3,0.8593]
[1744325569061,8.99083,1526.4,1526.3,0.8593]
[1744325569565,1.31111,1526.3,1526.2,0.00654735]
[1744325569752,1.3112,1526.2,1526.1,0.7923]
[1744325571454,1.3112,1526.2,1526.1,5.7923]
[1744325571661,0.00980841,1526.3,1526.2,1.3112]
[1744325571961,0.00980841,1526.3,1526.2,6.2068]
[1744325572160,0.00980841,1526.3,1526.2,11.2068]
[1744325572657,3.2078,1526.6,1526.2,9.8956]
[1744325572962,4.51873,1526.6,1526.4,1.311]
[1744325573158,4.51873,1526.6,1526.5,1.6878]
[1744325575765,4.51873,1526.6,1526.5,2.5211]
[1744325580069,1.31094,1526.5,1526.4,0.00980841]
[1744325580470,1.31094,1526.5,1526.4,1.72410841]
[1744325581774,4.51871,1526.6,1526.4,1.72410841]
[1744325581965,4.51871,1526.6,1526.4,3.03505841]
[1744325582166,4.51871,1526.6,1526.5,1.7143]
[1744325582575,4.51871,1526.6,1526.5,3.02524]
[1744325582875,4.51871,1526.6,1526.5,1.7143]
[1744325583875,4.51871,1526.6,1526.5,3.02524]
[1744325584978,4.51871,1526.6,1526.5,1.7143]
[1744325585475,4.51871,1526.6,1526.5,3.02524]
[1744325586777,1.31091,1526.6,1526.5,3.02524]
[1744325590182,4.52841841,1526.7,1526.6,1.31086]
[1744325590378,4.52841841,1526.7,1526.6,4.65506]
[1744325590972,4.52841841,1526.7,1526.6,3.3442]
[1744325591279,4.52841841,1526.7,1526.6,4.65506]
[1744325592580,4.52841841,1526.7,1526.6,3.3442]
[1744325593077,4.52841841,1526.7,1526.6,4.65506]
[1744325593381,1.32057841,1526.7,1526.6,4.65506]
[1744325593585,1.31094,1526.5,1526.4,0.00980841]
[1744325593981,1.31094,1526.5,1526.4,1.69210841]
[1744325594181,3.04124,1526.5,1526.4,1.69210841]
[1744325595991,3.04124,1526.5,1526.4,0.00980841]
[1744325596789,6.24904,1526.5,1526.4,0.00980841]
[1744325597190,11.24904,1526.5,1526.4,0.00980841]
[1744325597585,6.24904,1526.5,1526.4,0.00980841]
[1744325604195,11.34152725,1526.5,1526.4,0.00980841]
[1744325607096,16.34152725,1526.5,1526.4,8.41e-06]
[1744325608291,11.34152725,1526.5,1526.4,8.41e-06]
[1744325609391,13.93539651,1526.5,1526.4,8.41e-06]
[1744325609586,18.93539651,1526.5,1526.4,8.41e-06]
[1744325610297,13.93539651,1526.5,1526.4,8.41e-06]
[1744325612895,16.46484852,1526.5,1526.4,8.41e-06]
[1744325614190,13.25704852,1526.5,1526.4,8.41e-06]
[1744325614393,11.52674852,1526.5,1526.4,1.72370841]
[1744325616806,13.12024852,1526.5,1526.4,1.72370841]
[1744325618716,8.04695281,1526.5,1526.4,1.72370841]
[1744325625122,6.45345281,1526.5,1526.4,1.72370841]
[1744325625916,6.45345281,1526.5,1526.4,6.72370841]
[1744325626218,5.14251281,1526.5,1526.4,11.24253841]
[1744325626418,3.83701281,1526.5,1526.4,11.24253841]
[1744325626814,5.14795281,1526.5,1526.4,9.93150841]
[1744325627322,5.14795281,1526.5,1526.4,4.93150841]
[1744325627528,5.14795281,1526.5,1526.4,1.72370841]
[1744325631122,5.14795281,1526.5,1526.4,3.03473841]
[1744325631625,5.14795281,1526.5,1526.4,1.72370841]
[1744325632124,1.31094,1526.5,1526.4,3.03473841]
[1744325638315,1.31094,1526.5,1526.4,1.72370841]
[1744325638520,1.31094,1526.5,1526.4,8.41e-06]
[1744325639326,2.88344,1526.5,1526.4,8.41e-06]
[1744325641132,10.59720921,1526.5,1526.4,8.41e-06]
[1744325641923,9.02470921,1526.5,1526.4,2.93123841]
[1744325642630,9.02470921,1526.5,1526.4,1.62020841]
[1744325643031,9.02470921,1526.5,1526.4,2.93123841]
[1744325643230,7.71376921,1526.5,1526.4,7.93123841]
[1744325643830,2.39283868,1526.5,1526.4,13.92323841]
[1744325644732,10.22561693,1526.7,1526.6,1.31086]
[1744325644928,10.22561693,1526.7,1526.6,8.99966]
[1744325645128,10.22561693,1526.7,1526.6,13.99966]
[1744325645323,0.00980841,1526.7,1526.6,14.84176]
[1744325645533,0.00980841,1526.7,1526.6,16.52266]
[1744325645833,0.00980841,1526.7,1526.6,22.51466]
[1744325646936,0.00980841,1526.7,1526.6,23.032852]
[1744325649733,0.00980841,1526.7,1526.6,33.16083478]
[1744325650126,0.00980841,1526.7,1526.6,41.64975464]
[1744325650335,8.41e-06,1526.7,1526.6,41.64975464]
[1744325652530,8.41e-06,1526.7,1526.6,33.16083478]
[1744325653036,8.41e-06,1526.7,1526.6,33.81603478]
[1744325653238,8.41e-06,1526.7,1526.6,33.16083478]
[1744325653431,8.41e-06,1526.7,1526.6,23.688052]
[1744325653933,8.41e-06,1526.7,1526.6,13.68886]
[1744325654134,8.41e-06,1526.7,1526.6,17.50566]
[1744325654334,1.68240841,1526.7,1526.6,17.50566]
[1744325658435,8.41e-06,1526.7,1526.6,17.50566]
[1744325659140,8.41e-06,1526.7,1526.6,11.51366]
[1744325667030,1.68230841,1526.7,1526.6,11.51366]
[1744325669043,8.41e-06,1526.7,1526.6,11.51366]
[1744325672244,8.41e-06,1526.7,1526.6,16.51366]
[1744325673044,8.41e-06,1526.7,1526.6,17.16886]
[1744325673344,8.41e-06,1526.7,1526.6,16.51366]
[1744325673536,8.41e-06,1526.7,1526.6,17.16886]
[1744325674646,8.41e-06,1526.7,1526.6,12.16886]
[1744325675347,8.41e-06,1526.7,1526.6,32.86690233]
[1744325676655,8.41e-06,1526.7,1526.6,38.85890233]
[1744325679948,8.41e-06,1526.7,1526.6,38.20370233]
[1744325680145,8.41e-06,1526.7,1526.6,38.85890233]
[1744325680352,8.41e-06,1526.7,1526.6,38.20370233]
[1744325680647,8.41e-06,1526.7,1526.6,38.85890233]
[1744325681444,8.41e-06,1526.7,1526.6,38.20370233]
[1744325681843,8.41e-06,1526.7,1526.6,38.85890233]
[1744325682050,8.41e-06,1526.7,1526.6,38.20370233]
[1744325683247,8.41e-06,1526.7,1526.6,38.85890233]
[1744325683448,0.79970841,1526.7,1526.6,38.20370233]
[1744325683650,0.79970841,1526.7,1526.6,35.68070233]
[1744325683850,1.61140841,1526.7,1526.6,35.68070233]
[1744325684047,1.61140841,1526.7,1526.6,19.11864278]
[1744325684245,4.63337841,1526.7,1526.6,17.80778278]
[1744325684452,4.63337841,1526.7,1526.6,19.11864278]
[1744325684650,4.63337841,1526.7,1526.6,15.91084278]
[1744325686051,3.32260841,1526.7,1526.6,19.11864278]
[1744325687354,4.63337841,1526.7,1526.6,19.11864278]
[1744325687856,3.32260841,1526.7,1526.6,19.11864278]
[1744325689456,3.32260841,1526.7,1526.6,8.99066]
[1744325695456,4.63337841,1526.7,1526.6,8.99066]
[1744325695755,3.32260841,1526.7,1526.6,8.99066]
[1744325696755,4.63337841,1526.7,1526.6,8.99066]
[1744325697054,3.32260841,1526.7,1526.6,8.99066]
[1744325697557,4.63337841,1526.7,1526.6,8.99066]
[1744325697957,3.32260841,1526.7,1526.6,8.99066]
[1744325699961,1.71120841,1526.7,1526.6,8.99066]
[1744325700262,8.41e-06,1526.7,1526.6,11.51556]
[1744325702660,8.41e-06,1526.7,1526.6,8.99066]
[1744325702857,2.50910841,1526.7,1526.6,8.99066]
[1744325703356,2.50910841,1526.7,1526.6,10.62276]
[1744325708464,2.50910841,1526.7,1526.6,36.64002054]
[1744325710063,4.63117841,1526.7,1526.6,33.69706054]
[1744325710462,4.63117841,1526.7,1526.6,30.48926054]
[1744325711166,4.63117841,1526.7,1526.6,31.80012054]
[1744325711367,4.63117841,1526.7,1526.6,26.01726054]
[1744325711566,9.63117841,1526.7,1526.6,20.902673]
[1744325711767,4.63117841,1526.7,1526.6,20.902673]
[1744325713069,9.63117841,1526.7,1526.6,20.902673]
[1744325714563,9.63117841,1526.7,1526.6,22.213533]
[1744325715464,4.63117841,1526.7,1526.6,22.213533]
[1744325715663,4.63117841,1526.7,1526.6,20.902673]
[1744325715864,4.63117841,1526.7,1526.6,22.213533]
[1744325716663,4.63117841,1526.7,1526.6,1.31086]
[1744325717566,2.50910841,1526.7,1526.6,1.31086]
[1744325717766,2.50910841,1526.7,1526.6,6.97356]
[1744325720171,1.70570841,1526.7,1526.6,6.97356]
[1744325720371,8.41e-06,1526.7,1526.6,6.97356]
[1744325725776,8.41e-06,1526.7,1526.6,32.98449667]
[1744325733181,8.41e-06,1526.7,1526.6,27.86887824]
[1744325736886,8.41e-06,1526.7,1526.6,32.98449667]
[1744325737481,8.41e-06,1526.7,1526.6,30.52959667]
[1744325737682,8.41e-06,1526.7,1526.6,34.99859667]
[1744325737887,1.67090841,1526.7,1526.6,34.99859667]
[1744325738489,2.53260841,1526.7,1526.6,34.99859667]
[1744325738693,1.69620841,1526.7,1526.6,36.58099667]
[1744325738990,8.41e-06,1526.7,1526.6,36.58099667]
[1744325740990,8.41e-06,1526.7,1526.6,10.57006]
[1744325744095,8.41e-06,1526.7,1526.6,16.56206]
[1744325745295,8.41e-06,1526.7,1526.6,31.97279482]
[1744325749592,2.94447841,1526.7,1526.6,31.97279482]
[1744325749790,2.43020841,1526.7,1526.6,31.97279482]
[1744325749989,2.43020841,1526.7,1526.6,25.98079482]
[1744325750189,3.22430841,1526.7,1526.6,25.98079482]
[1744325750497,3.22430841,1526.7,1526.6,36.5802407]
[1744325751298,3.22430841,1526.7,1526.6,34.9978407]
[1744325751695,3.22430841,1526.7,1526.6,36.6554407]
[1744325754296,3.22430841,1526.7,1526.6,46.94669596]
[1744325758395,3.22430841,1526.7,1526.6,36.6554407]
[1744325765498,2.42780841,1526.7,1526.6,36.6554407]
[1744325765703,8.41e-06,1526.7,1526.6,36.6554407]
[1744325767005,8.41e-06,1526.7,1526.6,41.4967131]
[1744325769509,8.41e-06,1526.7,1526.6,38.2889131]
[1744325769705,8.41e-06,1526.7,1526.6,41.4967131]
[1744325770706,8.41e-06,1526.7,1526.6,141.3757131]
[1744325773802,1.31077841,1526.7,1526.6,133.9382531]
[1744325774008,6.31077841,1526.7,1526.6,35.3134531]
[1744325774395,7.17557841,1526.7,1526.6,35.3134531]
[1744325774708,8.91307841,1526.7,1526.6,35.3134531]
[1744325775008,8.91307841,1526.7,1526.6,56.51234487]
[1744325779014,14.03865673,1526.7,1526.6,4.462]
[1744325780728,9.03865673,1526.7,1526.6,4.462]
[1744325782728,3.91307841,1526.7,1526.6,4.462]
[1744325783322,2.60230841,1526.7,1526.6,5.77286]
[1744325783525,8.41e-06,1526.7,1526.6,8.98066]
[1744325783726,8.41e-06,1526.7,1526.6,10.56866]
[1744325785329,8.41e-06,1526.7,1526.6,16.56066]
[1744325787131,8.41e-06,1526.7,1526.6,37.45979637]
[1744325788033,1.31077841,1526.7,1526.6,30.09893637]
[1744325788233,4.54797841,1526.7,1526.6,34.56193637]
[1744325790331,4.54797841,1526.7,1526.6,30.09893637]
[1744325790532,4.54797841,1526.7,1526.6,34.56193637]
[1744325790726,3.23720841,1526.7,1526.6,35.87279637]
[1744325791031,1.61710841,1526.7,1526.6,31.45159637]
[1744325791736,1.61710841,1526.7,1526.6,10.55246]
[1744325796033,1.61710841,1526.7,1526.6,7.34466]
[1744325796233,1.61710841,1526.7,1526.6,11.35666]
[1744325799339,2.92787841,1526.7,1526.6,11.35666]
[1744325799737,2.92787841,1526.7,1526.6,7.6708]